Cogmind - Beta 17 *** ADVENTURER MODE // 2026.06.29 @ 01:32:25 Player: smidge Result: Self-destructed Performance ------------- Evolutions (6) 3000 Regions Visited (10) 2000 Robots Destroyed (66) 330 Value Destroyed (2181) 2181 Prototype IDs (2) 40 Alien Tech Used (0) 0 Bonus (0) 0 TOTAL SCORE: 7551 Bonus ------- None Cogmind --------- Core Integrity 929/1150 Matter 300/300 Energy 71/100 System Corruption 0% Temperature Cool (0) Movement Core (450) Ox8 Location -4/Extension Parts ------- > --- POWER (2) -------- (None) > --- PROPULSION (6) --- (None) > --- UTILITY (9) ------ Large Storage Unit Improved Sensor Array Improved Signal Interpreter Advanced Transmission Jammer ECM Suite Graphene Brace > --- WEAPON (2) ------- Scythe > --- INVENTORY (15) --- Centrium Wheel Advanced Terrain Scan Processor Thermal Shield Advanced Thermal Shield Heavy Plasma Cannon KE Penetrator Heavy Missile Launcher Peak State ------------ > --- POWER ------------ Neutrino Core Light Antimatter Reactor > --- PROPULSION ------- Flexi-carbon Leg Antigrav System Antigrav System Antigrav System Antigrav System Antigrav System > --- UTILITY ---------- Advanced Heat Sink Large Storage Unit Improved Sensor Array Improved Signal Interpreter Advanced Transmission Jammer ECM Suite Improved Medium Armor Plating Graphene Brace > --- WEAPON ----------- Scythe > --- INVENTORY -------- Centrium Wheel Advanced Terrain Scan Processor Thermal Shield Advanced Thermal Shield Heavy Plasma Cannon KE Penetrator Heavy Missile Launcher [Rating: 85] Favorites ----------- Power Nuclear Core Engine Light Ion Engine Power Core Nuclear Core Reactor Light Antimatter Reactor Propulsion Improved Treads Treads Improved Treads Leg Improved Aluminum Leg Wheel Wheel Hover Unit Improved Hover Unit Utility Signal Interpreter Device ECM Suite Storage Large Storage Unit Processor Signal Interpreter Hackware Hacking Suite Protection Light Armor Plating Weapon Katana Energy Gun Medium Laser Energy Cannon Proton Cannon Ballistic Gun Shotgun Ballistic Cannon Improved Light Cannon Launcher Heavy Missile Launcher Slashing Weapon Katana Build | -11 -10 -9 -8 -7 -6 -6 -6 -5 -4 -4 ------- Run | Yrd Mat Mat Mat Fac Fac Was Fac Fac Fac Ext Slots Evolved 12 | . . 2 2 2 2 . . 2 2 . Power 1 | . . . . . . . . . 1 . Propulsion 4 | . . 1 1 1 1 . . . . . Utility 7 | . . 1 1 1 1 . . 2 1 . Weapon . | . . . . . . . . . . . Parts Attached 91 | 6 2 9 7 8 2 4 12 26 14 1 Power 8 | 1 . 1 1 . . . 1 2 2 . Engine 4 | 1 . 1 . . . . 1 1 . . Core 3 | . . . 1 . . . . 1 1 . Reactor 1 | . . . . . . . . . 1 . Propulsion 39 | 2 2 1 2 5 1 4 3 13 6 . Treads 5 | . 2 1 2 . . . . . . . Leg 11 | . . . . 5 . . . 6 . . Wheel 3 | 2 . . . . . . . . 1 . Hover 20 | . . . . . 1 4 3 7 5 . Flight . | . . . . . . . . . . . Utility 28 | 1 . 4 1 2 1 . 5 7 6 1 Device 16 | . . 2 . 1 . . 2 5 5 1 Storage 3 | 1 . 1 . 1 . . . . . . Processor 4 | . . 1 . . . . 2 1 . . Hackware 2 | . . . . . . . 1 1 . . Protection 3 | . . . 1 . 1 . . . 1 . Artifact . | . . . . . . . . . . . Weapon 16 | 2 . 3 3 1 . . 3 4 . . Energy Gun 4 | 2 . 1 1 . . . . . . . Energy Cannon 3 | . . . . . . . 1 2 . . Ballistic Gun 2 | . . 1 1 . . . . . . . Ballistic Cannon 1 | . . 1 . . . . . . . . Launcher 1 | . . . . . . . . 1 . . Special Weapon . | . . . . . . . . . . . Impact Weapon . | . . . . . . . . . . . Slashing Weapon 5 | . . . 1 1 . . 2 1 . . Piercing Weapon . | . . . . . . . . . . . Special Melee Weapon . | . . . . . . . . . . . Unidentified Prototypes . | . . . . . . . . . . . Parts Lost 47 | . . 2 1 . . . 2 32 . 10 Power 5 | . . 1 . . . . . 2 . 2 Propulsion 25 | . . . . . . . 2 17 . 6 Utility 13 | . . 1 . . . . . 10 . 2 Weapon 4 | . . . 1 . . . . 3 . . Highest Loss Streak 15 | . . 1 1 . . . 2 15 . 10 To Critical Strikes . | . . . . . . . . . . . Average Backups 13 | 2 5 14 23 19 13 15 14 10 6 7 Power 1 | . 1 . 1 3 3 2 1 . . . Propulsion 5 | . 2 8 12 8 3 4 2 3 . 1 Utility 2 | . . 2 4 4 2 2 3 2 3 3 Weapon 3 | . 1 2 5 4 4 6 5 3 2 3 Tool/Special . | . . . . . . . . . . . Unused Backups 14 | . . 1 2 2 . 1 4 2 . 2 Power 4 | . . . . . . 1 3 . . . Propulsion 3 | . . . 1 2 . . . . . . Utility 2 | . . . . . . . . 1 . 1 Weapon 5 | . . 1 1 . . . 1 1 . 1 Tool/Special . | . . . . . . . . . . . Average Slot Usage (%) 83 | . 85 89 86 82 99 87 95 74 60 74 Engine 4 | . 14 11 . . . . 3 1 . . Core 3 | . . . 8 7 6 6 2 2 3 4 Treads 12 | . 9 24 36 5 . . . . . . Leg 5 | . . . . 22 33 7 12 6 5 4 Wheel 1 | . 18 . . . . . . . 2 . Hover 11 | . . . . . 6 31 26 21 18 19 Device 10 | . . 9 . 7 13 13 19 11 13 22 Storage 7 | . 14 11 9 7 6 6 6 5 5 5 Processor 7 | . . 10 9 7 6 6 11 4 5 5 Hackware 2 | . . . . . . . 1 9 . . Protection 1 | . . . 5 7 12 6 . . . 1 Energy Gun 5 | . 28 11 8 . . . . . . . Ballistic Gun 2 | . . 2 9 5 . . . . . . Ballistic Cannon 2 | . . 8 . . . . . . . . Slashing Weapon 3 | . . . . 9 13 7 7 7 3 5 Peak Build Rating 85 | 6 9 16 25 27 31 34 53 64 78 85 Average Rating 31 | 4 6 13 22 25 29 28 41 49 57 68 On Entrance 25 | . 6 9 15 25 27 31 28 53 13 75 Avg Prop Armor Cover (%) 7 | . . . . . 2 6 3 9 7 6 Naked Turns . | . . . . . . . . . . . Heaviest Build 96 | 12 12 93 96 37 42 35 49 45 53 54 Greatest Support 92 | 26 46 69 92 65 65 36 65 80 55 55 Greatest Overweight (x) 6 | . . 1 1 . . . 1 6 1 . Average Overweight (x) . | . . . . . . . . . . . Largest Inventory Capacity 25 | 8 8 25 25 25 15 15 15 15 15 15 Average Capacity 18 | 7 8 23 25 19 15 15 15 15 15 15 Most Carried 25 | 4 8 19 25 25 15 15 15 15 9 9 Average Carried 14 | 2 5 15 23 16 13 14 14 11 6 7 Final Capacity 25 | 8 8 25 25 15 15 15 15 15 15 15 Final Carried 25 | 4 7 19 25 14 15 15 15 4 9 7 Class Distribution -------------------- 62% | Mutant 9% | Scavenger-Mutant 5% | Assassin 5% | Hacker-Mutant 5% | Hacker-Ninja 4% | Infiltrator-Mutant 3% | Ninja Dominant Class ---------------- Mutant | -10/Materials Mutant | -9/Materials Mutant | -8/Materials Mutant | -7/Factory Mutant | -6/Factory Mutant | -6/Waste Assassin | -6/Factory Scavenger-Mutant | -5/Factory Mutant | -4/Factory Infiltrator-Mutant | -4/Extension Resources | -11 -10 -9 -8 -7 -6 -6 -6 -5 -4 -4 ----------- Run | Yrd Mat Mat Mat Fac Fac Was Fac Fac Fac Ext Matter Collected 1480 | 126 . 423 221 . . . 206 332 172 . Remotely . | . . . . . . . . . . . Salvage Created 2431 | . 100 467 603 . . . 143 821 215 82 Parts 137 | . 9 27 36 . . . 16 38 10 1 Haulers Intercepted 1 | . . 1 . . . . . . . . Recyclers Shooed 4 | . . . 1 . . . . 2 1 . Parts Field Recycled . | . . . . . . . . . . . Retrieved Matter . | . . . . . . . . . . . Parts Self-Destructed . | . . . . . . . . . . . Prevented . | . . . . . . . . . . . Parts Restored . | . . . . . . . . . . . Kills | -11 -10 -9 -8 -7 -6 -6 -6 -5 -4 -4 ------- Run | Yrd Mat Mat Mat Fac Fac Was Fac Fac Fac Ext Combat Hostiles Destroyed 51 | . 4 15 12 . . . 1 17 1 1 Melee 13 | . . . 1 . . . 1 9 1 1 Guns 29 | . 4 15 10 . . . . . . . Cannons 4 | . . . . . . . . 4 . . AOE 5 | . . . 1 . . . . 4 . . Classes Destroyed 12 | . 2 3 4 . . . . 3 . . Worker 2 | . . . . . . . . 1 1 . Builder 4 | . . . 1 . . . 2 1 . . Hauler 1 | . . 1 . . . . . . . . Recycler 3 | . . 1 1 . . . . . 1 . Operator 2 | . . . 1 . . . 1 . . . Watcher 3 | . . . 1 . . . 1 1 . . Swarmer 19 | . 3 7 4 . . . . 5 . . Grunt 14 | . 1 4 5 . . . . 4 . . Brawler 2 | . . . . . . . . 2 . . Sentry 7 | . . 4 2 . . . . . 1 . Hunter 6 | . . . 1 . . . 1 3 . 1 Programmer 3 | . . . . . . . . 3 . . Best Kill Streak 6 | . 4 6 5 . . . 2 6 2 1 Combat Bots Only 6 | . 4 6 4 . . . 1 4 1 1 Max Kills in Single Turn 4 | . 2 2 2 . . . 1 4 1 1 Gunslinging 1 | . 1 . . . . . . . . . Exploded 3 | . . . 1 . . . . 3 . . Melee 1 | . . . 1 . . . 1 1 1 1 Uniques/NPCs Destroyed . | . . . . . . . . . . . Combat | -11 -10 -9 -8 -7 -6 -6 -6 -5 -4 -4 -------- Run | Yrd Mat Mat Mat Fac Fac Was Fac Fac Fac Ext Hostile Shots Fired 582 | . 15 105 63 . . 1 13 272 12 101 Missed 175 | . 5 38 17 . . 1 4 80 4 26 Hits 407 | . 10 67 46 . . . 9 192 8 75 Melee 14 | . . . . . . . . 14 . . Projectile 393 | . 10 67 46 . . . 9 178 8 75 Critical Strikes 17 | . 1 2 1 . . . . 10 . 3 Actively Blocked 3 | . . . . . . . . . . 3 Damage Taken 5251 | . 56 633 536 . . . 115 2895 156 860 Core 1088 | . 8 124 67 . . . 64 604 60 161 Absorbed by Shields 127 | . . . . . . . . . . 127 Ignored by Resistances 1541 | . 21 190 157 . . . 35 810 47 281 Core Remaining (%) 83 | 100 96 69 87 100 . . 92 39 . . Volleys Fired 126 | . 7 49 39 . . . . 31 . . Largest 2 | . 2 2 2 . . . . 1 . . Hottest 100 | . 100 100 81 . . . . 90 . . Shots Fired 208 | . 14 97 66 . . . . 31 . . Gun 141 | . 14 61 66 . . . . . . . Cannon 65 | . . 36 . . . . . 29 . . Launcher 2 | . . . . . . . . 2 . . Special . | . . . . . . . . . . . Kinetic 87 | . . 48 39 . . . . . . . Thermal 92 | . 14 35 14 . . . . 29 . . Explosive 2 | . . . . . . . . 2 . . Electromagnetic 27 | . . 14 13 . . . . . . . Robot Hit Streak 25 | . 7 24 25 . . . . 16 . . Robot Miss Streak 3 | . 1 3 3 . . . . 1 . . Penetration Max . | . . . . . . . . . . . Secondary Targets 2 | . 1 . 1 . . . . . . . Max Gunslinging Chain 1 | . 1 . 1 . . . . . . . Shots Hit Robots 252 | . 11 74 54 . . . 13 78 8 14 Core Hits 116 | . 5 28 30 . . . 6 38 5 4 Critical Kills . | . . . . . . . . . . . Critical Parts Destroyed . | . . . . . . . . . . . Critical Strikes 24 | . . 4 3 . . . 1 11 2 3 Burn 6 | . . 3 3 . . . . . . . Blast 1 | . . 1 . . . . . . . . Sever 17 | . . . . . . . 1 11 2 3 Melee Attacks 110 | . . . 2 . 2 . 16 68 8 14 Impact . | . . . . . . . . . . . Slashing 110 | . . . 2 . 2 . 16 68 8 14 Piercing . | . . . . . . . . . . . Sneak Attacks 9 | . . . . . . . 3 2 4 . Combat Hostiles 2 | . . . . . . . . 2 . . Follow-up Attacks 6 | . . . . . . . . 6 . . Damage Inflicted 7172 | . 136 1275 968 . . . 582 3419 367 425 Guns 1733 | . 136 711 886 . . . . . . . Cannons 1504 | . . 544 . . . . . 960 . . Explosions 595 | . . 13 51 . . . . 531 . . Melee 3325 | . . . 31 . . . 582 1920 367 425 Ramming 15 | . . 7 . . . . . 8 . . Kinetic 1301 | . . 718 583 . . . . . . . Thermal 1641 | . 136 378 167 . . . . 960 . . Explosive 531 | . . . . . . . . 531 . . Electromagnetic 359 | . . 172 187 . . . . . . . Impact . | . . . . . . . . . . . Slashing 3325 | . . . 31 . . . 582 1920 367 425 Piercing . | . . . . . . . . . . . Highest Corruption 9 | . . . . . . . . 9 . . Average Corruption 8 | . . . . . . . . 8 . . Corruption Purged . | . . . . . . . . . . . Corruption Blocked . | . . . . . . . . . . . Effects 8 | . . . . . . . . 8 . . Matter Fused 3 | . . . . . . . . 3 . . Heat Flow Errors 1 | . . . . . . . . 1 . . Parts Rejected 1 | . . . . . . . . 1 . . Data Loss (minor) 1 | . . . . . . . . 1 . . Data Loss (major) 2 | . . . . . . . . 2 . . Overload Shots . | . . . . . . . . . . . Overflow Damage 181 | . . . . . . . 50 70 61 . Projectiles 8 | . . . . . . . . 8 . . Explosions 14 | . . . . . . . . 14 . . Melee 159 | . . . . . . . 50 48 61 . Knockbacks 4 | . . 4 . . . . . . . . Impact . | . . . . . . . . . . . Kinetic 4 | . . 4 . . . . . . . . Secondary . | . . . . . . . . . . . Self-Inflicted Damage 4 | . . . . . . . . 4 . . Shots . | . . . . . . . . . . . Rammed 3 | . . 1 . . . . . 2 . . Targets Rammed 3 | . . 1 . . . . . 2 . . Kicked . | . . . . . . . . . . . Crushed . | . . . . . . . . . . . Highest Temperature 419 | . 219 150 419 . . . . 273 . . Average Temperature 94 | . 109 49 129 . . . . 116 . . Received Heat Transfer 1216 | . 6 261 297 . . . . 607 45 . Effects 3 | . . . 3 . . . . . . . Energy Bleed 1 | . . . 1 . . . . . . . Interference 2 | . . . 2 . . . . . . . Siege Activations . | . . . . . . . . . . . Martial Activations . | . . . . . . . . . . . Shielding Activations . | . . . . . . . . . . . Robots Disrupted . | . . . . . . . . . . . Combat Hostiles . | . . . . . . . . . . . Robots Corrupted . | . . . . . . . . . . . Combat Hostiles . | . . . . . . . . . . . Parts Fried 2 | . . . 2 . . . . . . . Impact Corruptions . | . . . . . . . . . . . Robots Melted . | . . . . . . . . . . . Combat Hostiles . | . . . . . . . . . . . Parts Melted 5 | . . 3 1 . . . . 1 . . Heat Transferred 3432 | . 407 1345 618 . . . . 1062 . . Parts Sabotaged . | . . . . . . . . . . . Parts Stolen . | . . . . . . . . . . . Parts Stripped . | . . . . . . . . . . . Power Chain Reactions 2 | . . 1 1 . . . . . . . Alert | -11 -10 -9 -8 -7 -6 -6 -6 -5 -4 -4 ------- Run | Yrd Mat Mat Mat Fac Fac Was Fac Fac Fac Ext Maximum Alert Level . | . . . . . . . . . . . Low Security (%) 100 | 100 100 100 100 100 100 100 100 100 100 100 Level 1 . | . . . . . . . . . . . Level 2 . | . . . . . . . . . . . Level 3 . | . . . . . . . . . . . Level 4 . | . . . . . . . . . . . Level 5 . | . . . . . . . . . . . High Security . | . . . . . . . . . . . Max Security . | . . . . . . . . . . . Peak Influence 192 | . 80 140 192 47 15 . 39 129 30 30 Initial 47 | . . 18 42 47 15 . . 11 . . Average 29 | . 33 34 62 42 2 . 5 36 3 . Influence Increases 1691 | . 109 428 319 . 6 . 96 663 40 30 Destroy 0b10 Robot/C 1020 | . 80 300 240 . . . 20 340 20 20 Destroy 0b10 Robot/NC 75 | . . 10 20 . . . 20 15 10 . Destroy Leader 248 | . 10 72 52 . . . 12 82 10 10 Successful Hack 62 | . 19 . 1 . 5 . 20 17 . . Disable Machine 45 | . . 27 . . . . 9 9 . . Destroy Structure 31 | . . 4 6 . 1 . . 20 . . Partial Spotted 30 | . . . . . . . 15 15 . . Lose Combat Pursuer 180 | . . 15 . . . . . 165 . . Influence Decreases 1661 | . 59 361 313 86 43 . 67 692 40 . Entered New Map 223 | . . 32 75 76 22 . . 18 . . Time Decay 1085 | . 59 303 228 10 21 . 57 367 40 . Lost Part 337 | . . 10 10 . . . 10 307 . . Purge Threat 16 | . . 16 . . . . . . . . Squads Dispatched 9 | . . . 2 . . . 2 4 1 . Investigation 3 | . . . 2 . . . 1 . . . Extermination 5 | . . . . . . . 1 3 1 . Reinforcement 1 | . . . . . . . . 1 . . Assault . | . . . . . . . . . . . Garrison . | . . . . . . . . . . . Intercept . | . . . . . . . . . . . Searches Triggered . | . . . . . . . . . . . Construction Impeded 1 | . . . . . . . . 1 . . Haulers Reinforced . | . . . . . . . . . . . Active Scanning Responses . | . . . . . . . . . . . Cargo Convoy Interrupts . | . . . . . . . . . . . Stealth | -11 -10 -9 -8 -7 -6 -6 -6 -5 -4 -4 --------- Run | Yrd Mat Mat Mat Fac Fac Was Fac Fac Fac Ext Distress Signals 8 | . 1 1 1 . . . . 5 . . Communications Jammed . | . . . . . . . . . . . Distress Signals . | . . . . . . . . . . . Times Spotted 102 | . 6 20 18 . . 4 3 48 1 2 Peak Tracking Total 7 | . 6 5 4 . . 4 2 7 1 2 Tactical Retreats 11 | . . 1 . . . 1 . 9 . . ECM-based Alert Blocks 8 | . . . . . . . . 8 . . Traps | -11 -10 -9 -8 -7 -6 -6 -6 -5 -4 -4 ------- Run | Yrd Mat Mat Mat Fac Fac Was Fac Fac Fac Ext Traps Triggered 6 | . . . 2 . 1 . 1 . . 2 Indirectly . | . . . . . . . . . . . Trap Hack Attempts . | . . . . . . . . . . . Triggered . | . . . . . . . . . . . Disarmed . | . . . . . . . . . . . Reprogrammed . | . . . . . . . . . . . Reused . | . . . . . . . . . . . Traps Extracted . | . . . . . . . . . . . Installed . | . . . . . . . . . . . Triggered . | . . . . . . . . . . . Machines | -11 -10 -9 -8 -7 -6 -6 -6 -5 -4 -4 ---------- Run | Yrd Mat Mat Mat Fac Fac Was Fac Fac Fac Ext Machines Disabled 5 | . . 3 . . . . 1 1 . . Max in Single Turn 1 | . . 1 . . . . 1 1 . . Garrison Access 1 | . . . . . . . 1 . . . Machines Repaired . | . . . . . . . . . . . Machines Dismantled . | . . . . . . . . . . . Machines Sabotaged . | . . . . . . . . . . . Overloaded Fab Kills . | . . . . . . . . . . . Hacking | -11 -10 -9 -8 -7 -6 -6 -6 -5 -4 -4 --------- Run | Yrd Mat Mat Mat Fac Fac Was Fac Fac Fac Ext Machines Accessed 13 | . 3 3 1 . 1 . 3 2 . . Terminals 11 | . 3 2 1 . 1 . 2 2 . . Fabricators . | . . . . . . . . . . . Repair Stations . | . . . . . . . . . . . Recycling Units . | . . . . . . . . . . . Scanalyzers 1 | . . 1 . . . . . . . . Garrison Access 1 | . . . . . . . 1 . . . Total Hacks 30 | . 7 4 2 . 5 . 6 6 . . Successful 16 | . 4 2 1 . 2 . 4 3 . . Failed 14 | . 3 2 1 . 3 . 2 3 . . Catastrophic 2 | . . 1 . . . . . 1 . . Database Lockouts . | . . . . . . . . . . . Manual 9 | . . 1 . . 4 . 1 3 . . Terminals 27 | . 7 3 2 . 5 . 4 6 . . Fabricators . | . . . . . . . . . . . Repair Stations . | . . . . . . . . . . . Recycling Units . | . . . . . . . . . . . Scanalyzers 1 | . . 1 . . . . . . . . Garrison Access 2 | . . . . . . . 2 . . . Terminal Hacks 14 | . 4 2 1 . 1 . 3 3 . . Prototype ID Bank 1 | . . 1 . . . . . . . . Level Access Points 3 | . 1 . . . . . 1 1 . . Emergency Access Points 1 | . . . . . . . . 1 . . Alert Level 1 | . . . . . 1 . . . . . Unreport Threat 1 | . . 1 . . . . . . . . Locate Traps 1 | . 1 . . . . . . . . . Security Status 1 | . 1 . . . . . . . . . Transport Status 1 | . . . 1 . . . . . . . Investigation Status 1 | . 1 . . . . . . . . . Registered Prototypes 1 | . . . . . . . 1 . . . Zone Layout 2 | . . . . . . . 1 1 . . Fabricator Hacks . | . . . . . . . . . . . Repair Station Hacks . | . . . . . . . . . . . Recycling Unit Hacks . | . . . . . . . . . . . Scanalyzer . | . . . . . . . . . . . Garrison Access Hacks 1 | . . . . . . . 1 . . . Seal Access 1 | . . . . . . . 1 . . . Unauthorized Hacks 1 | . . . . . 1 . . . . . Terminals 1 | . . . . . 1 . . . . . Operators 1 | . . . . . 1 . . . . . Fabricators . | . . . . . . . . . . . Repair Stations . | . . . . . . . . . . . Recycling Units . | . . . . . . . . . . . Scanalyzers . | . . . . . . . . . . . Garrison Access . | . . . . . . . . . . . Data Cores Recovered 2 | . . . 1 . . . 1 . . . Used 1 | . . . 1 . . . . . . . Hacking Detections 12 | . 2 3 1 . 1 . 3 2 . . Full Trace Events . | . . . . . . . . . . . Feedback Events . | . . . . . . . . . . . Feedback Blocked . | . . . . . . . . . . . Robot Schematics Acquired . | . . . . . . . . . . . Robots Built . | . . . . . . . . . . . Authchips . | . . . . . . . . . . . Time . | . . . . . . . . . . . Total Robot Build Rating . | . . . . . . . . . . . Part Schematics Acquired . | . . . . . . . . . . . Parts Built . | . . . . . . . . . . . Authchips . | . . . . . . . . . . . Time . | . . . . . . . . . . . Total Part Build Rating . | . . . . . . . . . . . Part Studies Acquired . | . . . . . . . . . . . Parts Repaired . | . . . . . . . . . . . Time . | . . . . . . . . . . . Parts Recycled . | . . . . . . . . . . . Recycled Matter . | . . . . . . . . . . . Retrieved Matter . | . . . . . . . . . . . Retrieved Components . | . . . . . . . . . . . Parts Scanalyzed . | . . . . . . . . . . . Part Schematics Acquired . | . . . . . . . . . . . Parts Damaged . | . . . . . . . . . . . Bothacking | -11 -10 -9 -8 -7 -6 -6 -6 -5 -4 -4 ------------ Run | Yrd Mat Mat Mat Fac Fac Was Fac Fac Fac Ext Used RIF Installer . | . . . . . . . . . . . Robots Hacked . | . . . . . . . . . . . Non-combat . | . . . . . . . . . . . Combat . | . . . . . . . . . . . Robot Hacks Applied . | . . . . . . . . . . . Relay Couplers Released . | . . . . . . . . . . . Fabnet Peak Effective % . | . . . . . . . . . . . Robots Rewired . | . . . . . . . . . . . Allies Hacked . | . . . . . . . . . . . Hacks Repelled . | . . . . . . . . . . . Allies | -11 -10 -9 -8 -7 -6 -6 -6 -5 -4 -4 -------- Run | Yrd Mat Mat Mat Fac Fac Was Fac Fac Fac Ext Total Allies . | . . . . . . . . . . . Largest Group . | . . . . . . . . . . . Highest-Rated Group . | . . . . . . . . . . . Highest-Rated Ally . | . . . . . . . . . . . Total Orders . | . . . . . . . . . . . Ally Attacks . | . . . . . . . . . . . Total Damage . | . . . . . . . . . . . Kills . | . . . . . . . . . . . Allies Corrupted . | . . . . . . . . . . . Allies Melted . | . . . . . . . . . . . Intel | -11 -10 -9 -8 -7 -6 -6 -6 -5 -4 -4 ------- Run | Yrd Mat Mat Mat Fac Fac Was Fac Fac Fac Ext Active Infowar (turns) 2356 | . . 879 . 21 205 125 459 417 177 73 Sensors 1431 | . . 124 . 20 205 125 458 249 177 73 Traps 632 | . . . . . . . 435 197 . . Seismic 755 | . . 755 . . . . . . . . Jamming 181 | . . . . . . . . . 108 73 ECM 720 | . . . . 21 205 125 126 242 1 . Robot Analysis Total . | . . . . . . . . . . . Derelict Logs Recovered . | . . . . . . . . . . . Drone Launches . | . . . . . . . . . . . Drone Recoveries . | . . . . . . . . . . . Exploration | -11 -10 -9 -8 -7 -6 -6 -6 -5 -4 -4 ------------- Run | Yrd Mat Mat Mat Fac Fac Was Fac Fac Fac Ext Turns Passed 3915 | 44 165 999 636 32 205 125 459 857 320 73 Spaces Moved 2848 | 34 126 352 206 13 163 184 577 785 357 51 Core 4 | 1 . . . . . . . 3 . . Treads 590 | . 32 352 206 . . . . . . . Legs 355 | . . . . 13 163 . 112 49 18 . Wheels 135 | 33 94 . . . . . . . 8 . Hover 1764 | . . . . . . 184 465 733 331 51 Flight . | . . . . . . . . . . . Fastest Speed 40 | 50 90 160 160 120 120 54 40 40 54 54 Average Speed 100 | 87 107 232 233 120 120 54 57 59 72 54 Slowest Speed 350 | 90 160 240 240 120 120 54 120 350 190 54 Overloaded Moves . | . . . . . . . . . . . Propulsion Burnouts . | . . . . . . . . . . . Robots Hopped . | . . . . . . . . . . . Potential Cave-ins . | . . . . . . . . . . . Cave-ins Triggered . | . . . . . . . . . . . Exploration Rate (%) 23 | 3 36 33 22 . 5 78 17 20 9 13 Regions Visited 10 Branch Regions 1 Pre-discovered Areas . | . . . . . . . . . . . Known Exits Taken 6 | . 1 1 . 1 . . 1 1 1 . Unknown Exits Taken 2 | 1 . . 1 . . . . . . . Scrap Searched . | . . . . . . . . . . . Spaces Dug 13 | . . . . . 1 . . 12 . . Terrain Destroyed 23 | . . 3 6 . 1 . . 13 . . Melee 13 | . . . . . 1 . . 12 . . Projectile 2 | . . 1 . . . . . 1 . . AOE 8 | . . 2 6 . . . . . . . Terrain Rammed . | . . . . . . . . . . . Walls Destroyed . | . . . . . . . . . . . Machines Disabled . | . . . . . . . . . . . Actions | -11 -10 -9 -8 -7 -6 -6 -6 -5 -4 -4 --------- Run | Yrd Mat Mat Mat Fac Fac Was Fac Fac Fac Ext Total 3538 | 45 141 434 299 33 170 209 683 1050 399 75 Wait 239 | . . 5 23 3 . 18 47 130 13 . Move 2839 | 33 125 351 205 12 163 183 576 784 356 51 Hop . | . . . . . . . . . . . Pick Up 68 | 6 5 16 15 . 3 . 10 9 4 . Fast Attach 33 | 4 . 2 . . . . 6 9 12 . Attach 44 | 2 . 2 3 8 2 . 7 16 2 2 Detach 9 | . . . . 1 . 2 1 2 3 . Swap 26 | . 2 5 4 1 . 4 7 2 1 . Drop 44 | . 2 3 8 8 . 2 15 6 . . Fire 126 | . 7 49 39 . . . . 31 . . Melee 99 | . . . 2 . 2 . 14 59 8 14 Ram 2 | . . . . . . . . 2 . . Kick . | . . . . . . . . . . . Crush 1 | . . 1 . . . . . . . . Escape Stasis 8 | . . . . . . . . . . 8 Rewire . | . . . . . . . . . . . Trap . | . . . . . . . . . . . Miscellaneous . | . . . . . . . . . . . Route ------- -11/Scrapyard -10/Materials (discovered 4 exits: *Mat x3 / [*Min]) -9/Materials -8/Materials -7/Factory -6/Factory -6/Waste -6/Factory (discovered 5 exits: *Fac x4 / *Low) -5/Factory (discovered 4 exits: *Fac x4) -4/Factory -4/Extension History --------- Turn | Location | Event 20 | -11/Scrapyard | Discovered new exit (range 16) 45 | -11/Scrapyard | Entered Materials 80 | -10/Materials | Identified exit to Materials 91 | -10/Materials | Discovered new exit (range 14) 210 | -10/Materials | Entered another Materials area 210 | -9/Materials | Evolved 2 slots: Propulsion x1, Utility x1 314 | -9/Materials | Build established: Mutant 1085 | -9/Materials | Discovered new exit (range 16) 1205 | -9/Materials | Identified exit to Materials 1209 | -9/Materials | Entered another Materials area 1209 | -8/Materials | Evolved 2 slots: Propulsion x1, Utility x1 1822 | -8/Materials | Discovered new exit (range 7) 1845 | -8/Materials | Entered Factory 1845 | -7/Factory | Evolved 2 slots: Propulsion x1, Utility x1 1862 | -7/Factory | Discovered new exit (range 12) 1875 | -7/Factory | Identified exit to Factory 1877 | -7/Factory | Entered another Factory area 1877 | -6/Factory | Evolved 2 slots: Propulsion x1, Utility x1 2082 | -6/Factory | Sucked down chute 2082 | -6/Factory | Entered Waste 2096 | -6/Waste | Spotted C-40 Crusher 2115 | -6/Waste | Spotted C-40 Crusher 2126 | -6/Waste | Spotted C-40 Crusher 2187 | -6/Waste | Spotted C-40 Crusher 2190 | -6/Waste | Spotted C-40 Crusher 2201 | -6/Waste | Discovered new exit (range 12) 2207 | -6/Waste | Identified exit to Factory 2207 | -6/Waste | Entered Factory 2258 | -6/Factory | Discovered new exit (range 6) 2264 | -6/Factory | Identified exit to Lower Caves 2515 | -6/Factory | Identified exit to Factory 2666 | -6/Factory | Entered another Factory area 2666 | -5/Factory | Evolved 2 slots: Utility x2 2805 | -5/Factory | Identified exit to Factory 3083 | -5/Factory | Lost 7 parts (5n2u) 3212 | -5/Factory | Build established: Scavenger-Mutant 3229 | -5/Factory | Lost 6 parts (3n2u1w) 3436 | -5/Factory | Lost 15 parts (2p8n3u2w) 3489 | -5/Factory | Core integrity fell below 50% 3523 | -5/Factory | Entered another Factory area 3523 | -4/Factory | Evolved 2 slots: Power x1, Utility x1 3815 | -4/Factory | Discovered new exit (range 12) 3820 | -4/Factory | Identified exit to Extension 3843 | -4/Factory | Entered Extension 3916 | -4/Extension | Self-destructed Last Messages --------------- 03894_ Slug penetrates Wall. 03894_ Penetrated by Slug. 03896_ H-77 Assassin Coil Gun severed. 03897_ Penetrated by Slug. 03897_ Adv. Heat Sink destroyed. 03897_ Slug penetrates Wall. 03897_ Antigrav System destroyed. 03899_ H-77 Assassin Coil Gun severed. 03902_ Penetrated by Slug. 03902_ Flexi-carbon Leg destroyed. 03902_ Neutrino Core destroyed. 03905_ Slug penetrates Wall. 03908_ Penetrated by Slug. 03908_ Antigrav System destroyed. 03910_ Imp. Medium Armor Plating destroyed. 03911_ Slug penetrates Wall. 03912_ Lgt. Antimatter Reactor destroyed. 03914_ Wall collapses. 03914_ H-77 Assassin destroyed. 03915_ Slug penetrates Wall. Map ----- +----------------------------------------------------+ | | | | | | | | | | | | | | | | | | | | | | | | | | | | | | | | | | | | | | | | | | | ?????????????????????????????????????????????????? | | ?????????????????#######?????????????????????????? | | ????############## #?????????????????????????? | | ????# ###########???????????????? | | ????# @=h #????????????? | | ????# ##%[#######???????????????? | | ????# ####### ###[#???????R?????????????? | | ????# #?????#######?? #?????????????????????? | | ????# #?????????????? #?????????????????????? | | ????# #?????????????? #?????????????????????? | | ????# #???????????????#??????????u??????????? | | ????# #?????????????????????????????????????? | | ????# ###########???????????????????????????? | | ????# ????????????????????????? | | ????# #??????????????b????????????? | | ????# #???????????????????????????? | | ????# #???????????????????????????? | | ????# ################???????????????????????????? | | ????# #??????????????????????????????????????????? | | ????# #??????????????????????????????????????????? | | ????# #??????????????????????????????????????????? | | ????# #??????????????????????????????????????????? | | ????# #??????????????????????????????????????????? | | ????# #??????????????????????????????????????????? | | ????# #??????????????????????????????????????????? | | ????# #??????????????????????????????????????????? | | ????# #??????????????????????????????????????????? | | ????# #??????????????????????????????????????????? | | ????# #??????????????????????????????????????????? | +----------------------------------------------------+ Best States ------------- Heat Dissipation 67 Energy Generation 35 Energy Capacity 385 Matter Stores 300 Matter Capacity 300 Sight Range 16 Robot Scan Range 16 Terrain Scan Density 10 ECM Strength 1 Jamming Range 16 Armor Coverage 300 Resistance: KI 20 Resistance: TH 40 Resistance: EX 20 Resistance: EM 20 Resistance: I 20 Resistance: S 20 Resistance: P 20 Phase Shifting 5 Evasion (%) 57 Melee Accuracy 5 Recoil Reduction 4 Offensive Hacking 20 Defensive Hacking 10 Item Schematics ----------------- None Robot Schematics ------------------ None Fabricated ------------ Nothing Repaired ---------- Nothing Studied --------- None Alien Tech Used ----------------- None Achievements -------------- None Challenges ------------ None Game ------ Seed MappingTerrabombChargecaster Manual? 0 Play Time 00:57:47 Cumulative 60.6 hours Start 2026.06.29 @ 00:32:34 End 2026.06.29 @ 01:32:25 Sessions 1 Manual Loads 0 Difficulty Adventurer Special Mode None Game No. 49 Rogue 0 Adventurer 49 Explorer 0 Win Type - Total 0 Types 0/0/0/0/0/0/0/0/0/0 Lore% 30 Gallery% 41 Achievement% 35 Wizard Run 0 Options --------- Layout 0 ASCII 0 Keyboard 0 Movement Mouse Keybinds 0 Fullscreen 0 Font 16/SmallcapsGlow Map View 76x50 Zoom Use 0% Tactical HUD 1 Map Filters NONE Filters NONE Steam 1 RUN: 6a4fe115-05c7-4f54-bd25-e83b9d420e4b